fUSD/lending_fUSD_20250929
["ID","MTS","AMOUNT","RATE_DAILY","PERIOD"]
[388365673,1759125051405,-1500.0,0.00019563,2]
[388365674,1759125051415,-1401.4094343,0.00019563,2]
[388365675,1759125051426,-1500.0,0.00019563,2]
[388365676,1759125051437,-1007.10051927,0.00019563,2]
[388365677,1759125051447,-1500.0,0.00019563,2]
[388365678,1759125051457,-1500.0,0.00019563,2]
[388365679,1759125051467,-1500.0,0.00019563,2]
[388365680,1759125051477,-562.5287038,0.00019563,2]
[388365681,1759125051487,-1500.0,0.00019563,2]
[388365682,1759125051498,-1500.0,0.00019563,2]
[388365683,1759125051508,-197.06659436,0.00019563,2]
[388365684,1759125051518,-369.57854038,0.00019563,2]
[388365685,1759125051528,-483.75808727,0.00019563,2]
[388365686,1759125051539,-1500.0,0.00019563,2]
[388365687,1759125051549,-1500.0,0.00019563,2]
[388365688,1759125051559,-1500.0,0.00019563,2]
[388365689,1759125051569,-1500.0,0.00019563,2]
[388365690,1759125051580,-1500.0,0.00019563,2]
[388365691,1759125051590,-1500.0,0.00019563,2]
[388365692,1759125051601,-1500.0,0.00019563,2]
[388365693,1759125051611,-968.46191497,0.00019563,2]
[388365694,1759125051622,-835.70304984,0.00019563,2]
[388365695,1759125051632,-1500.0,0.00019563,2]
[388365696,1759125051642,-1500.0,0.00019563,2]
[388365697,1759125051652,-1500.0,0.00019563,2]
[388365698,1759125051667,-1500.0,0.00019563,2]
[388365699,1759125051677,-8997.98207287,0.00019589,2]
[388365700,1759125051687,-205.79272368,0.000196,2]
[388365701,1759125051697,-2278.157,0.00019623,2]
[388365702,1759125051707,-168.557,0.00019623,2]
[388365703,1759125051717,-8997.98207287,0.00019633,2]
[388365704,1759125051727,-1500.0,0.00019656,2]
[388365705,1759125051739,-8997.98207287,0.00019678,2]
[388365706,1759125051749,-8997.98207287,0.00019722,2]
[388365707,1759125051759,-343663.73,0.00019726,2]
[388365708,1759125051769,-156.587,0.00019726,2]
[388365709,1759125051780,-8997.98207287,0.00019767,2]
[388365710,1759125051791,-500.0,0.00019773,2]
[388365711,1759125051802,-500.0,0.00019773,2]
[388365712,1759125051812,-500.0,0.00019773,2]
[388365713,1759125051821,-150.0,0.00019773,2]
[388365714,1759125051831,-500.0,0.00019773,2]
[388365715,1759125051841,-515.17951238,0.00019773,2]
[388365716,1759125051851,-500.0,0.00019773,2]
[388365717,1759125051861,-166.19909056,0.00019773,2]
[388365718,1759125051871,-500.0,0.00019773,2]
[388365719,1759125051882,-165.87224074,0.00019773,2]
[388365720,1759125051892,-165.18678318,0.00019773,2]
[388365721,1759125051902,-324.04294946,0.00019773,2]
[388365722,1759125051912,-163.17815219,0.00019773,2]
[388365723,1759125051922,-412.60064734,0.00019773,2]
[388365724,1759125051932,-500.0,0.00019773,2]
[388365725,1759125051942,-542.92793914,0.00019773,2]
[388365726,1759125051952,-500.0,0.00019773,2]
[388365727,1759125051962,-500.0,0.00019773,2]
[388365728,1759125051972,-500.0,0.00019773,2]
[388365729,1759125051982,-500.0,0.00019773,2]
[388365730,1759125051992,-500.0,0.00019773,2]
[388365731,1759125052002,-500.0,0.00019773,2]
[388365732,1759125052012,-500.0,0.00019773,2]
[388365733,1759125052022,-157.02840596,0.00019773,2]
[388365734,1759125052032,-500.0,0.00019773,2]
[388365735,1759125052042,-522.53411858,0.00019773,2]
[388365736,1759125052051,-500.0,0.00019773,2]
[388365737,1759125052061,-500.0,0.00019773,2]
[388365738,1759125052071,-339.4806915,0.00019773,2]
[388365739,1759125052082,-278.1555197,0.00019773,2]
[388365740,1759125052092,-500.0,0.00019773,2]
[388365741,1759125052103,-500.0,0.00019773,2]
[388365742,1759125052113,-500.0,0.00019773,2]
[388365743,1759125052123,-500.0,0.00019773,2]
[388365744,1759125052133,-500.0,0.00019773,2]
[388365745,1759125052143,-500.0,0.00019773,2]
[388365746,1759125052154,-302.37735472,0.00019773,2]
[388365747,1759125052164,-164.42293148,0.00019773,2]
[388365748,1759125052174,-501.97573859,0.00019773,2]
[388365749,1759125052184,-217.0,0.0001978,2]
[388365750,1759125052194,-31231.126078,0.00019784,2]
[388365751,1759125052204,-7337.2223692,0.00019784,2]
[388365752,1759125052214,-4087.18668,0.000198,2]
[388365753,1759125052225,-8997.98207287,0.00019811,2]
[388365754,1759125052235,-168.0,0.00019831,2]
[388365755,1759125052245,-200.0,0.00019839,2]
[388365756,1759125052255,-200.0,0.00019839,2]
[388365757,1759125052265,-200.0,0.00019839,2]
[388365758,1759125052275,-200.0,0.00019839,2]
[388365759,1759125052286,-849.0,0.00019849,2]
[388365760,1759125052296,-81391.80762393,0.00019849,2]
[388365761,1759125053358,-371.63732303,0.00019849,2]
[388365762,1759125053370,-3046.80912314,0.00019849,2]
[388365763,1759125053382,-1191.9,0.00019849,2]
[388365764,1759125053470,-1164.3,0.00019849,2]
[388365765,1759125053482,-2934.96000008,0.00019849,2]
[388365766,1759125053545,-500.0,0.00019849,2]
[388365767,1759125054861,-211.673961,0.00018467,2]
[388365768,1759125054871,-1825.70819678,0.00019849,2]
[388365769,1759125055306,-839.15,0.00019849,2]
[388365770,1759125055338,-403.09871949,0.00019849,2]
[388365771,1759125055349,-60672.50109785,0.00019849,2]
[388365772,1759125055359,-2615.26,0.00019849,2]
[388365773,1759125055430,-301.01552762,0.00019849,2]
[388365774,1759125055441,-3052.44622209,0.00019849,2]
[388365775,1759125055452,-285.35032063,0.00019849,2]
[388365776,1759125055463,-4432.44727101,0.00019849,2]
[388365777,1759125055549,-491.42396994,0.00019849,2]
[388365778,1759125055670,-49551.25945341,0.00019849,2]
[388365779,1759125055680,-105891.1317952,0.00019849,2]
[388365780,1759125055689,-637.2396743,0.00019849,2]
[388365781,1759125055698,-1244.4651291,0.00019849,2]
[388365782,1759125055707,-77720.2769873,0.00019849,2]
[388365783,1759125055716,-8997.98207287,0.00019856,2]
[388365784,1759125055725,-168.0,0.00019858,2]
[388365785,1759125055735,-5498.0,0.00019873,2]
[388365786,1759125055744,-5000.0,0.00019898,2]
[388365787,1759125055753,-180.32256458,0.000199,2]
[388365788,1759125055763,-159.11228853,0.000199,2]
[388365789,1759125055772,-1458.16618086,0.000199,2]
[388365790,1759125055782,-2321.30614614,0.000199,2]
[388365791,1759125055791,-8997.98207287,0.000199,2]
[388365792,1759125055799,-174.91311306,0.000199,2]
[388365793,1759125055808,-159.5304696,0.00019973,2]
[388365794,1759125055818,-500.0,0.00019973,2]
[388365795,1759125055827,-500.0,0.00019973,2]
[388365796,1759125055839,-164.90147579,0.00019973,2]
[388365797,1759125055848,-500.0,0.00019973,2]
[388365798,1759125055858,-500.0,0.00019973,2]
[388365799,1759125055867,-167.00534381,0.00019973,2]
[388365800,1759125055877,-500.0,0.00019973,2]
[388365801,1759125055887,-500.0,0.00019973,2]
[388365802,1759125055897,-500.0,0.00019973,2]
[388365803,1759125055906,-170.39773331,0.00019973,2]
[388365804,1759125055916,-500.0,0.00019973,2]
[388365805,1759125055926,-500.0,0.00019973,2]
[388365806,1759125055935,-160.8622456,0.00019973,2]
[388365807,1759125055945,-500.0,0.00019973,2]
[388365808,1759125055955,-500.0,0.00019973,2]
[388365809,1759125055964,-500.0,0.00019973,2]
[388365810,1759125055974,-500.0,0.00019973,2]
[388365811,1759125055983,-500.0,0.00019973,2]
[388365812,1759125055993,-500.0,0.00019973,2]
[388365813,1759125056003,-500.0,0.00019973,2]
[388365814,1759125056012,-500.0,0.00019973,2]
[388365815,1759125056022,-500.0,0.00019973,2]
[388365816,1759125056031,-500.0,0.00019973,2]
[388365817,1759125056040,-560.72495636,0.00019973,2]
[388365818,1759125056049,-500.0,0.00019973,2]
[388365819,1759125056058,-500.0,0.00019973,2]
[388365820,1759125056067,-547.25014336,0.00019973,2]
[388365821,1759125056077,-500.56999013,0.00019973,2]
[388365822,1759125056086,-161.16816585,0.00019973,2]
[388365823,1759125056096,-203.46208508,0.00019973,2]
[388365824,1759125056106,-500.0,0.00019973,2]
[388365825,1759125056115,-500.0,0.00019973,2]
[388365826,1759125056126,-500.0,0.00019973,2]
[388365827,1759125056135,-570.50939943,0.00019973,2]
[388365828,1759125056145,-571.86697367,0.00019973,2]
[388365829,1759125056155,-500.0,0.00019973,2]
[388365830,1759125056164,-500.0,0.00019973,2]
[388365831,1759125056174,-501.62690061,0.00019973,2]
[388365832,1759125056184,-500.0,0.00019973,2]
[388365833,1759125056194,-500.0,0.00019973,2]
[388365834,1759125056204,-167.84790287,0.00019973,2]
[388365835,1759125056214,-500.65353541,0.00019973,2]
[388365836,1759125056223,-150.0,0.00019973,2]
[388365837,1759125056233,-150.5,0.00019998,2]
[388365838,1759125056242,-150.98,0.00019998,2]
[388365839,1759125056251,-300.0,0.00019999,2]
[388365840,1759125056259,-1000.0,0.00019999,2]
[388365841,1759125056267,-150.0,0.00019999,2]
[388365842,1759125056275,-155.0,0.00019999,2]
[388365843,1759125056283,-1000.0,0.00019999,2]
[388365844,1759125056289,-19814.30310949,0.0002,2]
[388365845,1759125056296,-194330.12791829,0.0002,2]
[388365846,1759125056302,-348372.74237249,0.0002,2]
[388365847,1759125056309,-3950.0,0.0002,2]
[388365848,1759125056316,-1276.460658,0.0002,2]
[388365849,1759125056324,-7271.95136101,0.0002,2]
[388365850,1759125056331,-150.0,0.0002,2]
[388365851,1759125056339,-1000.0,0.0002,4]
[388365852,1759125056347,-490.0,0.0002,4]
[388365853,1759125056355,-124972.47544029,0.0002,2]
[388365854,1759125059057,-283.7975,0.0002,2]
[388365855,1759125059154,-5514.0,0.000197,5]
[388365856,1759125059164,-61187.57898745,0.0002,2]
[388365857,1759125059245,-514.86806616,0.0002,2]
[388365858,1759125059257,-9150.00005,0.0002,2]
[388365859,1759125059291,-14173.38298161,0.0002,2]
[388365860,1759125060872,-153.0,0.00019345,2]
[388365861,1759125060883,-153.0,0.00019345,2]
[388365862,1759125060893,-93.58788103,0.00019345,2]
[388365863,1759125061000,-59.41211897,0.00019345,2]
[388365864,1759125061010,-153.0,0.00019345,2]
[388365865,1759125061020,-153.0,0.00019345,2]
[388365866,1759125061508,-167340.0,0.000194,2]
[388365867,1759125061535,-5514.0,0.000195,3]
[388365868,1759125061546,-13747.05755725,0.0002,2]
[388365869,1759125061556,-13033.53032408,0.0002,2]
[388365870,1759125061592,-4945.64693416,0.0002,2]
[388365871,1759125061606,-612.84989598,0.0002,2]
[388365872,1759125061617,-327.410967,0.0002,2]
[388365873,1759125061658,-43789.79977291,0.0002,2]
[388365874,1759125061669,-1118.7,0.0002,2]
[388365875,1759125061757,-1120.70022195,0.0002,2]
[388365876,1759125061770,-1743.0,0.0002,2]
[388365877,1759125093172,465.35,9.403e-05,2]
[388365878,1759125093376,465.35,9.898e-05,2]
[388365879,1759125093487,465.35,0.00010393,2]
[388365880,1759125093636,465.35,0.00010888,2]
[388365881,1759125093952,465.35,0.00011383,2]
[388365882,1759125094241,465.35,0.00011878,2]
[388365883,1759125094475,465.35,0.00012372,2]
[388365884,1759125094589,465.35,0.00012867,2]
[388365885,1759125095092,465.35,0.00013362,2]
[388365886,1759125095524,465.35,0.00013857,2]
[388365887,1759125095699,465.35,0.00014352,2]
[388365888,1759125095863,465.35,0.00014847,2]
[388365889,1759125098532,-161.62011947,0.00015342,2]
[388365890,1759125114185,-303.72988053,0.00015342,2]
[388365891,1759125115527,150.0,0.000245,30]
[388365892,1759125116547,223.5740427,0.000245,30]
[388365893,1759125117385,500.0,0.000245,30]
[388365894,1759125119373,150.0,0.000245,30]
[388365895,1759125120080,500.0,0.000245,30]
[388365896,1759125121558,500.0,0.000245,30]
[388365897,1759125124350,248.54890191,0.000245,30]
[388365898,1759125125046,778.0,0.000245,30]
[388365899,1759125130455,150.0,0.000245,30]
[388365900,1759125131689,500.0,0.000245,30]
[388365901,1759125134356,150.79034921,0.000245,30]
[388365902,1759125140450,150.0,0.000245,30]
[388365903,1759125142507,521.0,0.000245,30]
[388365906,1759125208368,620.0,0.000245,30]
[388365907,1759125214089,500.0,0.000245,30]
[388365908,1759125217603,636.0,0.000245,30]
[388365909,1759125223977,500.0,0.000245,30]
[388365910,1759125246570,150.0,0.000245,30]
[388365911,1759125247701,601.0,0.000245,30]
[388365912,1759125378846,500.0,0.000245,30]
[388365913,1759125385019,3731.38,0.000245,30]
[388365914,1759125394762,2011.84,0.000245,30]
[388365922,1759125426533,150.0,0.000245,30]
[388365923,1759125480834,200.66856213,0.000245,30]
[388365924,1759125576593,3239.0,0.000245,30]
[388365925,1759125612656,594.0,0.000245,30]
[388365926,1759125622380,500.0,0.000245,30]
[388365927,1759125626619,610.0,0.000245,30]
[388365928,1759125639034,500.0,0.000245,30]
[388365929,1759125682704,-235.95514286,0.00015342,2]
[388365934,1759125749740,150.0,0.000245,30]
[388365935,1759125751178,500.0,0.000245,30]
[388365936,1759125833476,150.0,0.000245,30]
[388365937,1759125890157,150.0,0.000245,30]
[388365938,1759125891615,576.0,0.000245,30]
[388365939,1759126058786,500.0,0.000245,30]
[388365940,1759126062168,500.0,0.000245,30]
[388365941,1759126066008,203.44537224,0.000245,30]
[388365942,1759126066544,254.70244388,0.000245,30]
[388365943,1759126070599,570.0,0.000245,30]
[388365944,1759126076792,500.0,0.000245,30]
[388365945,1759126080813,500.0,0.000245,30]
[388365946,1759126082338,584.0,0.000245,30]
[388365947,1759126086271,160.5,8.714e-05,2]
[388365948,1759126086420,160.5,0.00011619,2]
[388365949,1759126086571,160.5,0.00014524,2]
[388365950,1759126087384,150.0,0.000245,30]
[388365951,1759126107919,-475.43,0.00015836,2]
[388365952,1759126107941,-2055.94,0.00015836,5]
[388365953,1759126107963,-195.0,0.00015836,2]
[388365954,1759126107985,-465.35,0.00015837,2]
[388365955,1759126108008,-160.0,0.00015837,2]
[388365956,1759126108031,-465.35,0.00016332,2]
[388365957,1759126108055,-182.93,0.00016512,2]
[388365959,1759126162020,4999.0,0.00014951,2]
[388365960,1759126225966,3104.0,0.000245,30]
[388366021,1759126235488,-465.35,0.00016827,2]
[388366022,1759126235499,-197.59393352,0.00017,2]
[388366023,1759126235560,-52.40606648,0.00017,2]
[388366024,1759126235571,-358.15900204,0.00017173,2]
[388366025,1759126235606,-446.57142673,0.00017173,2]
[388366026,1759126235618,-330.36601385,0.00017173,2]
[388366027,1759126235660,-899.49091916,0.00017173,2]
[388366028,1759126235673,-1025.95952308,0.00017173,2]
[388366029,1759126235732,-359.44311514,0.00017173,2]
[388366030,1759126235742,-714.34,0.00017321,2]
[388366031,1759126235751,-326.51660317,0.00017321,2]
[388366032,1759126236709,-138.83339683,0.00017321,2]
[388366033,1759126236718,-300.0,0.00017393,2]
[388366034,1759126236729,-63.4155381,0.00017393,2]
[388366067,1759126242101,-1005.59730604,0.00017393,2]
[388366068,1759126242411,-130.98715586,0.00017393,2]
[388366069,1759126242421,-653.62284509,0.00017394,2]
[388366091,1759126244039,-11568.69715491,0.00017394,2]
[388366092,1759126244048,-195.0,0.0001742,2]
[388366093,1759126244058,-160.5,0.00017428,2]
[388366094,1759126244068,-165.96,0.00017483,2]
[388366095,1759126244078,-220.53,0.00017684,2]
[388366096,1759126244088,-1000.0,0.00017695,2]
[388366097,1759126244097,-465.35,0.00017816,2]
[388366098,1759126244107,-245.76,0.0001793,2]
[388366099,1759126244116,-500.0,0.00018,2]
[388366100,1759126244125,-523.47,0.00018064,2]
[388366101,1759126244135,-412.87,0.000182,2]
[388366102,1759126244144,-412.87,0.000182,2]
[388366103,1759126244154,-412.87,0.000182,2]
[388366104,1759126244164,-412.87,0.000182,2]
[388366105,1759126244173,-11315.37983124,0.00018299,2]
[388366106,1759126244183,-412.87,0.000183,2]
[388366107,1759126244192,-465.35,0.00018311,2]
[388366108,1759126244201,-152.82,0.00018367,2]
[388366109,1759126244211,-152.07,0.00018367,2]
[388366110,1759126244221,-151.55,0.00018367,2]
[388366111,1759126244230,-152.46,0.00018367,2]
[388366112,1759126244239,-465.35,0.00018806,2]
[388366113,1759126244248,-728.0,0.00018876,2]
[388366114,1759126244258,-4113.0,0.00018876,2]
[388366115,1759126244267,-170.43,0.00018927,2]
[388366116,1759126244278,-1420.21276914,0.00018947,2]
[388366117,1759126244288,-239.84119403,0.00018947,2]
[388366118,1759126244298,-420.0,0.0001899,2]
[388366119,1759126244307,-400.0,0.00019,6]
[388366120,1759126244316,-905.04,0.00019041,2]
[388366121,1759126244326,-806.74,0.00019041,2]
[388366122,1759126244336,-806.74,0.00019041,2]
[388366123,1759126244346,-1680.0,0.00019084,2]
[388366124,1759126244356,-418.989,0.00019095,2]
[388366125,1759126244365,-900.0,0.000191,6]
[388366126,1759126244375,-1351.0,0.00019136,2]
[388366127,1759126244385,-2687.817184,0.00019175,2]
[388366128,1759126244396,-151.0,0.00019178,2]
[388366129,1759126244407,-5000.0,0.00019178,2]
[388366130,1759126244416,-96844.43910368,0.000192,2]
[388366131,1759126244426,-1400.0,0.000192,7]
[388366132,1759126244436,-2687.81718394,0.00019256,2]
[388366133,1759126244447,-170.17,0.00019263,2]
[388366134,1759126244456,-1351.0,0.00019275,2]
[388366135,1759126244467,-159.5304696,0.000193,2]
[388366136,1759126244477,-164.90147579,0.000193,2]
[388366137,1759126244487,-163.22219629,0.000193,2]
[388366138,1759126244496,-167.00534381,0.000193,2]
[388366139,1759126244506,-170.39773331,0.000193,2]
[388366140,1759126244516,-160.8622456,0.000193,2]
[388366141,1759126244527,-500.0,0.000193,2]
[388366142,1759126244536,-500.0,0.000193,2]
[388366143,1759126244547,-500.0,0.000193,2]
[388366144,1759126244556,-500.0,0.000193,2]
[388366145,1759126244566,-500.0,0.000193,2]
[388366146,1759126244575,-500.0,0.000193,2]
[388366147,1759126244585,-506.83500734,0.000193,2]
[388366148,1759126244594,-500.0,0.000193,2]
[388366149,1759126244604,-500.0,0.000193,2]
[388366150,1759126244613,-500.0,0.000193,2]
[388366151,1759126244623,-500.0,0.000193,2]
[388366152,1759126244631,-500.0,0.000193,2]
[388366153,1759126244640,-500.0,0.000193,2]
[388366154,1759126244649,-500.0,0.000193,2]
[388366155,1759126244659,-500.0,0.000193,2]
[388366156,1759126244668,-500.0,0.000193,2]
[388366157,1759126244677,-1900.0,0.000193,7]
[388366158,1759126244686,-2687.81718394,0.00019336,2]
[388366159,1759126244695,-7801.05,0.00019339,2]
[388366160,1759126244705,-153.0,0.0001938,2]
[388366161,1759126244714,-153.0,0.0001938,2]
[388366162,1759126244723,-153.0,0.0001938,2]
[388366163,1759126244732,-153.0,0.0001938,2]
[388366164,1759126244742,-153.0,0.0001938,2]
[388366165,1759126244751,-153.0,0.0001938,2]
[388366166,1759126244760,-153.0,0.0001938,2]
[388366167,1759126244770,-153.0,0.0001938,2]
[388366168,1759126244779,-153.0,0.0001938,2]
[388366169,1759126244789,-153.0,0.0001938,2]
[388366170,1759126244798,-153.0,0.0001938,2]
[388366171,1759126244808,-153.0,0.0001938,2]
[388366172,1759126244818,-153.0,0.0001938,2]
[388366173,1759126244828,-153.0,0.0001938,2]
[388366174,1759126244838,-153.0,0.0001938,2]
[388366175,1759126244848,-153.0,0.0001938,2]
[388366176,1759126244857,-153.0,0.0001938,2]
[388366177,1759126244867,-153.0,0.0001938,2]
[388366178,1759126244877,-153.0,0.0001938,2]
[388366179,1759126244886,-153.0,0.0001938,2]
[388366180,1759126244896,-153.0,0.0001938,2]
[388366181,1759126244906,-153.0,0.0001938,2]
[388366182,1759126244915,-153.0,0.0001938,2]
[388366183,1759126244925,-153.0,0.0001938,2]
[388366184,1759126244934,-153.0,0.0001938,2]
[388366185,1759126244943,-1454.82789782,0.00019381,2]
[388366186,1759126244953,-153.0,0.00019382,2]
[388366187,1759126244962,-153.0,0.00019382,2]
[388366188,1759126244972,-153.0,0.00019382,2]
[388366189,1759126244981,-153.0,0.00019382,2]
[388366190,1759126244990,-153.0,0.00019382,2]
[388366191,1759126245000,-153.0,0.00019382,2]
[388366192,1759126245010,-153.0,0.00019382,2]
[388366193,1759126245020,-153.0,0.00019382,2]
[388366194,1759126245029,-153.0,0.00019382,2]
[388366195,1759126245039,-153.0,0.00019382,2]
[388366196,1759126245049,-153.0,0.00019382,2]
[388366197,1759126245059,-153.0,0.00019382,2]
[388366198,1759126245069,-153.0,0.00019382,2]
[388366199,1759126245079,-153.0,0.00019382,2]
[388366200,1759126245090,-153.0,0.00019382,2]
[388366201,1759126245099,-153.0,0.00019382,2]
[388366202,1759126245109,-153.0,0.00019382,2]
[388366203,1759126245118,-153.0,0.00019382,2]
[388366204,1759126245127,-153.0,0.00019382,2]
[388366205,1759126245137,-153.0,0.00019382,2]
[388366206,1759126245148,-153.0,0.00019382,2]
[388366207,1759126245157,-153.0,0.00019382,2]
[388366208,1759126245167,-153.0,0.00019382,2]
[388366209,1759126245178,-153.0,0.00019382,2]
[388366210,1759126245188,-153.0,0.00019382,2]
[388366211,1759126245197,-153.0,0.00019382,2]
[388366212,1759126245209,-153.0,0.00019382,2]
[388366213,1759126245219,-153.0,0.00019383,2]
[388366214,1759126245228,-153.0,0.00019383,2]
[388366215,1759126245238,-153.0,0.00019383,2]
[388366216,1759126245248,-153.0,0.00019383,2]
[388366217,1759126245257,-153.0,0.00019383,2]
[388366218,1759126245267,-153.0,0.00019383,2]
[388366219,1759126245277,-153.0,0.00019383,2]
[388366220,1759126245287,-153.0,0.00019383,2]
[388366221,1759126245297,-153.0,0.00019383,2]
[388366222,1759126245306,-153.0,0.00019383,2]
[388366223,1759126245315,-153.0,0.00019383,2]
[388366224,1759126245326,-153.0,0.00019383,2]
[388366225,1759126245336,-153.0,0.00019383,2]
[388366226,1759126245345,-153.0,0.00019383,2]
[388366227,1759126245354,-153.0,0.00019383,2]
[388366228,1759126245364,-153.0,0.00019383,2]
[388366229,1759126245373,-153.0,0.00019383,2]
[388366230,1759126245383,-153.0,0.00019383,2]
[388366231,1759126245392,-153.0,0.00019383,2]
[388366232,1759126245407,-153.0,0.00019383,2]
[388366233,1759126245417,-153.0,0.00019383,2]
[388366234,1759126245427,-153.0,0.00019383,2]
[388366235,1759126245436,-153.0,0.00019383,2]
[388366236,1759126245447,-153.0,0.00019383,2]
[388366237,1759126245457,-155.0,0.00019383,2]
[388366238,1759126245466,-155.0,0.00019383,2]
[388366239,1759126245477,-155.0,0.00019383,2]
[388366240,1759126245486,-155.0,0.00019383,2]
[388366241,1759126245496,-155.0,0.00019383,2]
[388366242,1759126245506,-155.0,0.00019383,2]
[388366243,1759126245515,-155.0,0.00019383,2]
[388366244,1759126245525,-155.0,0.00019383,2]
[388366245,1759126245535,-155.0,0.00019383,2]
[388366246,1759126245544,-155.0,0.00019383,2]
[388366247,1759126245555,-2400.0,0.000194,7]
[388366248,1759126245565,-2687.81718394,0.00019417,2]
[388366249,1759126245575,-2687.81718394,0.00019497,2]
[388366250,1759126245586,-400.0,0.000195,7]
[388366251,1759126245596,-2687.81718394,0.00019578,2]
[388366252,1759126245607,-400.0,0.000196,7]
[388366253,1759126245616,-168.0,0.00019653,2]
[388366254,1759126245626,-2687.81718394,0.00019658,2]
[388366255,1759126245637,-1351.0,0.00019692,2]
[388366256,1759126245647,-1822.525,0.000197,2]
[388366257,1759126245657,-168.557,0.000197,2]
[388366258,1759126245667,-400.0,0.000197,7]
[388366259,1759126245677,-5637.62,0.00019726,2]
[388366260,1759126245686,-156.587,0.00019726,2]
[388366261,1759126245696,-2687.81718394,0.00019739,2]
[388366263,1759126245706,-261.10932953,0.00019763,2]
[388366264,1759126245716,-5000.0,0.00019797,2]
[388366265,1759126245726,-400.0,0.000198,7]
[388366266,1759126245735,-2687.81718394,0.00019819,2]
[388366267,1759126245744,-200.0,0.00019839,2]
[388366268,1759126245753,-200.0,0.0001984,2]
[388366269,1759126245763,-1000.0,0.00019848,2]
[388366270,1759126245772,-1000.0,0.00019848,2]
[388366271,1759126245782,-1000.0,0.00019848,2]
[388366272,1759126245791,-500.377846,0.00019848,2]
[388366273,1759126245801,-1000.0,0.00019848,2]
[388366274,1759126245811,-1000.0,0.00019848,2]
[388366275,1759126245820,-1000.0,0.00019848,2]
[388366276,1759126245830,-602.60094903,0.00019848,2]
[388366277,1759126245840,-1000.0,0.00019848,2]
[388366278,1759126245850,-428.71763284,0.00019848,2]
[388366279,1759126245860,-1000.0,0.00019848,2]
[388366280,1759126245869,-1000.0,0.00019848,2]
[388366281,1759126245879,-310.71768314,0.00019848,2]
[388366282,1759126245889,-1000.0,0.00019848,2]
[388366283,1759126245899,-1000.0,0.00019848,2]
[388366284,1759126245910,-152.63,0.00019849,2]
[388366285,1759126245920,-152.13,0.00019849,2]
[388366286,1759126245930,-151.07,0.00019849,2]
[388366287,1759126245939,-248.46880587,0.00019896,2]
[388366288,1759126245949,-218.9484484,0.00019896,2]
[388366289,1759126245960,-527.25177783,0.00019896,2]
[388366290,1759126245970,-6696.0460443,0.00019897,2]
[388366291,1759126245980,-229283.7769647,0.00019897,2]
[388366292,1759126245990,-1881.7048034,0.00019897,2]
[388366293,1759126246000,-2002.4543941,0.00019898,2]
[388366294,1759126246010,-2687.81718394,0.000199,2]
[388366295,1759126246020,-1371.0,0.000199,7]
[388366296,1759126246030,-2321.30614614,0.000199,2]
[388366297,1759126246039,-399.7440682,0.000199,3]
[388366298,1759126246049,-174.91311306,0.000199,2]
[388366299,1759126246059,-170.43,0.00019969,2]
[388366300,1759126246068,-500.0,0.00019973,2]